fUSD/lending_fUSD_20240905
["ID","MTS","AMOUNT","RATE_DAILY","PERIOD"]
[337236688,1725519835946,-150.0,0.00036948,120]
[337236689,1725519835986,-1388.56,0.00036974,120]
[337236690,1725519836026,-410.0,0.00036986,90]
[337236691,1725519836067,-9760.84653016,0.00037,30]
[337236692,1725519836115,-4813.35890891,0.00037,90]
[337236693,1725519836156,-1075.0,0.00037042,30]
[337236694,1725519836198,-150.0,0.00037048,120]
[337236695,1725519836238,-150.0,0.00037107,120]
[337236696,1725519836279,-150.0,0.00037148,120]
[337236697,1725519836325,-150.0,0.00037155,120]
[337236698,1725519836365,-150.0,0.00037241,120]
[337236699,1725519836406,-150.0,0.00037248,120]
[337236700,1725519836448,-150.0,0.00037255,120]
[337236701,1725519836489,-150.0,0.00037348,120]
[337236702,1725519836529,-150.0,0.00037448,120]
[337236703,1725519836567,-150.0,0.00037459,120]
[337236704,1725519836606,-150.0,0.00037488,120]
[337236705,1725519836644,-2934.86302102,0.00037498,120]
[337236706,1725519836683,-150.0,0.00037548,120]
[337236707,1725519836722,-150.0,0.00037648,120]
[337236708,1725519836760,-150.0,0.00037679,120]
[337236709,1725519836936,-150.0,0.00037748,120]
[337236710,1725519836973,-150.0,0.00037824,120]
[337236711,1725519837012,-150.0,0.00037836,120]
[337236712,1725519837050,-150.0,0.00037848,120]
[337236713,1725519837088,-151.0,0.00037863,120]
[337236714,1725519837128,-150.0,0.00037948,120]
[337236715,1725519837168,-340.59895461,0.00037999,120]
[337236716,1725519837209,-40000.0,0.00038,30]
[337236717,1725519837247,-1100.0,0.00038,120]
[337236718,1725519837285,-435.51449616,0.00038,120]
[337236719,1725519837325,-205.11953826,0.00038,30]
[337236720,1725519837363,-226.60318091,0.00038,30]
[337236721,1725519837402,-865.0,0.00038,90]
[337236722,1725519837445,-2000.0,0.00038,120]
[337236723,1725519837486,-975.1,0.00038,120]
[337236724,1725519837527,-4610.87386729,0.00038,40]
[337236725,1725519837568,-5000.0,0.00038,120]
[337236726,1725519837608,-948.17563888,0.00038,120]
[337236727,1725519837648,-1234.94024532,0.00038,120]
[337236728,1725519837686,-630.61,0.00038,32]
[337236729,1725519837727,-1000.0,0.00038,120]
[337236730,1725519837768,-150.0,0.00038048,120]
[337236731,1725519837810,-150.0,0.00038061,120]
[337236732,1725519837854,-150.0,0.00038148,120]
[337236733,1725519837895,-150.0,0.00038248,120]
[337236734,1725519837939,-150.0,0.00038348,120]
[337236735,1725519837982,-2000.0,0.00038356,120]
[337236736,1725519838025,-771.79463359,0.00038356,120]
[337236737,1725519838068,-251.86610952,0.00038356,60]
[337236738,1725519838110,-500.0,0.000384,120]
[337236739,1725519838154,-150.0,0.00038448,120]
[337236740,1725519838197,-40000.0,0.000385,45]
[337236741,1725519838241,-150.0,0.00038548,120]
[337236742,1725519838285,-150.0,0.00038551,120]
[337236743,1725519838328,-150.0,0.00038604,120]
[337236744,1725519838372,-150.0,0.00038648,120]
[337236745,1725519838414,-150.0,0.00038698,119]
[337236746,1725519838458,-150.0,0.00038748,120]
[337236747,1725519838499,-150.0,0.00038798,119]
[337236748,1725519838538,-150.0,0.00038803,120]
[337236749,1725519838578,-150.0,0.00038828,120]
[337236750,1725519838618,-150.0,0.00038848,120]
[337236751,1725519838659,-3155.41383099,0.0003888,90]
[337236752,1725519838700,-150.0,0.00038898,119]
[337236753,1725519838741,-1911.83170606,0.000389,30]
[337236754,1725519838783,-150.0,0.00038937,120]
[337236755,1725519838823,-150.0,0.00038948,120]
[337236756,1725519838864,-151.0,0.00038986,120]
[337236757,1725519838904,-150.0,0.00038998,119]
[337236758,1725519838944,-600.0,0.00039,120]
[337236759,1725519838984,-600.0,0.00039,120]
[337236760,1725519839024,-600.0,0.00039,120]
[337236761,1725519839066,-2000.0,0.00039,32]
[337236762,1725519839109,-199.59738351,0.00039,120]
[337236763,1725519839149,-1962.3,0.00039,120]
[337236764,1725519839190,-150.0,0.00039,120]
[337236765,1725519839233,-10003.03115699,0.00039,120]
[337236766,1725519839274,-150.0,0.00039,120]
[337236767,1725519839325,-1950.0,0.00039,30]
[337236768,1725519839368,-160.0,0.00039,30]
[337236769,1725519839415,-150.0,0.00039048,120]
[337236770,1725519839460,-150.0,0.00039066,120]
[337236771,1725519839505,-150.0,0.00039098,119]
[337236772,1725519839552,-150.0,0.00039134,120]
[337236773,1725519839609,-150.0,0.0003914,120]
[337236774,1725519839656,-150.0,0.00039148,120]
[337236775,1725519839703,-150.0,0.00039177,120]
[337236776,1725519839750,-150.0,0.00039198,119]
[337236777,1725519839794,-178.84372824,0.000392,30]
[337236778,1725519839834,-1201.55207,0.00039208,30]
[337236779,1725519839875,-150.0,0.00039248,120]
[337236780,1725519839916,-150.0,0.0003928,120]
[337236781,1725519839956,-150.0,0.00039298,119]
[337236782,1725519839996,-1000.0,0.000393,120]
[337236783,1725519840037,-1000.0,0.000393,120]
[337236784,1725519840081,-1000.0,0.000393,120]
[337236785,1725519840127,-1000.0,0.000393,120]
[337236786,1725519840173,-1000.0,0.000393,120]
[337236787,1725519840217,-1000.0,0.000393,120]
[337236788,1725519840264,-1000.0,0.000393,120]
[337236789,1725519840307,-712.23226305,0.000393,120]
[337236790,1725519840357,-150.0,0.00039348,120]
[337236791,1725519840406,-150.0,0.00039355,120]
[337236792,1725519840451,-150.0,0.00039358,120]
[337236793,1725519840496,-150.0,0.00039385,120]
[337236794,1725519840539,-150.0,0.00039398,119]
[337236795,1725519840583,-569.70340603,0.000394,30]
[337236796,1725519840625,-1201.55207,0.00039408,30]
[337236797,1725519840668,-200.2305361,0.00039421,120]
[337236798,1725519840709,-202.8347226,0.0003944,120]
[337236799,1725519840751,-1000.0,0.00039443,120]
[337236800,1725519840792,-1000.0,0.00039443,120]
[337236801,1725519840833,-1000.0,0.00039443,120]
[337236802,1725519840877,-1000.0,0.00039443,120]
[337236803,1725519840918,-1000.0,0.00039443,120]
[337236804,1725519840961,-1000.0,0.00039443,120]
[337236805,1725519841001,-1000.0,0.00039443,120]
[337236806,1725519841041,-1000.0,0.00039443,120]
[337236807,1725519841081,-602.41745783,0.00039443,120]
[337236808,1725519841126,-150.0,0.00039448,120]
[337236809,1725519841169,-1200.0,0.00039478,60]
[337236810,1725519841213,-150.0,0.00039498,119]
[337236811,1725519841257,-156.96734851,0.000395,30]
[337236812,1725519841440,-3282.0,0.00039529,74]
[337236813,1725519841483,-150.0,0.00039548,120]
[337236814,1725519841526,-150.0,0.00039598,119]
[337236815,1725519841575,-1201.55207,0.00039608,30]
[337236816,1725519841616,-150.0,0.00039609,120]
[337236817,1725519841660,-150.0,0.00039648,120]
[337236818,1725519841704,-150.0,0.00039698,119]
[337236819,1725519841747,-150.0,0.000397,120]
[337236820,1725519841792,-150.0,0.00039748,120]
[337236821,1725519841835,-150.0,0.00039798,119]
[337236822,1725519841878,-2928.43750043,0.000398,120]
[337236823,1725519841925,-2551.96571707,0.000398,60]
[337236824,1725519841969,-1201.55207,0.00039808,30]
[337236825,1725519842012,-5000.0,0.0003982,120]
[337236826,1725519842056,-5000.0,0.0003982,90]
[337236827,1725519842105,-150.0,0.00039848,120]
[337236828,1725519842153,-9784.59623117,0.0003988,30]
[337236829,1725519842198,-410.0,0.00039886,90]
[337236830,1725519842243,-2698.0,0.00039898,59]
[337236831,1725519842289,-150.0,0.00039898,119]
[337236832,1725519842335,-66976.32216007,0.000399,120]
[337236833,1725519842382,-150.0,0.00039927,120]
[337236834,1725519842428,-150.0,0.00039948,120]
[337236835,1725519842475,-410.0,0.00039986,90]
[337236836,1725519842519,-250.0,0.00039999,30]
[337236837,1725519842564,-2000.0,0.0004,32]
[337236838,1725519842606,-412.09682092,0.0004,30]
[337236839,1725519842648,-200.0,0.0004,120]
[337236840,1725519842692,-5000.0,0.0004,60]
[337236841,1725519842734,-477.12749073,0.0004,30]
[337236842,1725519842777,-2103.35005255,0.0004,120]
[337236843,1725519842819,-1798.6041139,0.0004,120]
[337236844,1725519842860,-2677.04665989,0.0004,120]
[337236845,1725519842903,-2938.27211027,0.0004,30]
[337236846,1725519842944,-920.07892929,0.0004,120]
[337236847,1725519842986,-449.29722962,0.0004,120]
[337236848,1725519843031,-1484.46773046,0.0004,30]
[337236849,1725519843077,-222.33029141,0.0004,30]
[337236850,1725519843125,-550.74434963,0.0004,120]
[337236851,1725519843172,-1186.7852583,0.0004,30]
[337236852,1725519843221,-4000.0,0.0004,30]
[337236853,1725519843269,-992.51342564,0.0004,120]
[337236854,1725519843317,-203.09556547,0.0004,30]
[337236855,1725519843363,-478.58126855,0.0004,120]
[337236856,1725519843410,-181.53733991,0.0004,120]
[337236857,1725519843459,-1167.74918236,0.0004,120]
[337236858,1725519843508,-1424.31585071,0.0004,120]
[337236859,1725519843555,-855.55329307,0.0004,120]
[337236860,1725519843604,-3273.53412351,0.0004,120]
[337236861,1725519843652,-1050.58608756,0.0004,32]
[337236862,1725519843700,-308.89650347,0.0004,30]
[337236863,1725519843749,-345.62082409,0.0004,120]
[337236864,1725519843798,-627.38295649,0.0004,120]
[337236865,1725519843848,-1248.42727051,0.0004,120]
[337236866,1725519843893,-493.3773455,0.0004,120]
[337236867,1725519843939,-855.0,0.0004,120]
[337236868,1725519843989,-2000.0,0.0004,120]
[337236869,1725519844034,-400.0,0.0004,120]
[337236870,1725519844079,-200.0,0.0004,120]
[337236871,1725519844130,-2052.94002892,0.0004,120]
[337236872,1725519844181,-2041.53,0.0004,120]
[337236873,1725519844227,-9336.56817708,0.0004,120]
[337236874,1725519844275,-11357.61047469,0.0004,120]
[337236875,1725519844324,-2000.0,0.0004,90]
[337236876,1725519844370,-1863.0,0.0004,33]
[337236877,1725519844413,-317.02189221,0.0004,60]
[337236878,1725519844459,-1000000.0,0.0004,120]
[337236879,1725519844505,-500000.0,0.0004,120]
[337236880,1725519844547,-5000.0,0.0004,120]
[337236881,1725519844590,-5000.0,0.0004,120]
[337236882,1725519844633,-358.0,0.0004,120]
[337236883,1725519844674,-948.17563888,0.0004,120]
[337236884,1725519844719,-1234.94024532,0.0004,120]
[337236885,1725519844761,-152.46618291,0.0004,30]
[337236886,1725519844806,-165.97931901,0.0004,120]
[337236887,1725519844851,-890.21862045,0.0004,120]
[337236888,1725519844897,-291.83208157,0.0004,120]
[337236889,1725519844942,-2000.0,0.0004,120]
[337236890,1725519844989,-551.18584564,0.0004,90]
[337236891,1725519845035,-257.54462806,0.0004,120]
[337236892,1725519845084,-337.76,0.0004,120]
[337236893,1725519845134,-2077.62,0.0004,120]
[337236894,1725519845187,-5323.25,0.0004,120]
[337236895,1725519845235,-154.915766,0.0004,120]
[337236896,1725519845283,-874.2,0.0004,120]
[337236897,1725519845331,-150.0,0.00040077,120]
[337236898,1725519845376,-151.0,0.0004011,120]
[337236899,1725519845425,-1388.56,0.00040135,120]
[337236900,1725519845473,-150.0,0.00040204,120]
[337236901,1725519845518,-1201.55207,0.00040208,30]
[337236902,1725519845562,-1201.55207,0.00040408,30]
[337236903,1725519845611,-150.0,0.0004042,120]
[337236904,1725519845653,-500000.0,0.000405,120]
[337236905,1725519845697,-1201.55207,0.00040608,30]
[337236906,1725519845741,-580.0,0.00040746,60]
[337236907,1725519845784,-1201.55207,0.00040808,30]
[337236908,1725519845828,-150.0,0.00040885,120]
[337236909,1725519845872,-1369.10576611,0.000409,120]
[337236910,1725519845913,-37565.75,0.00040999,120]
[337236911,1725519845956,-200.0,0.00041,120]
[337236912,1725519845997,-200.0,0.00041,120]
[337236913,1725519846039,-200.0,0.00041,120]
[337236914,1725519846082,-200.0,0.00041,120]
[337236915,1725519846127,-251.0,0.00041,120]
[337236916,1725519846303,-2000.0,0.00041,60]
[337236917,1725519846359,-454.99595486,0.00041,120]
[337236918,1725519846406,-499.999999,0.00041,120]
[337236919,1725519846452,-878.79579209,0.00041,120]
[337236920,1725519846497,-352.60756083,0.00041,120]
[337236921,1725519846540,-2506.95310271,0.00041,120]
[337236922,1725519846586,-388.0,0.00041,120]
[337236923,1725519846629,-1201.0,0.00041,120]
[337236924,1725519846672,-877.86710169,0.00041,120]
[337236925,1725519846718,-1118.9,0.00041,120]
[337236926,1725519846762,-979.0,0.00041,120]
[337236927,1725519846805,-500.0,0.00041,120]
[337236928,1725519846849,-500.0,0.00041,120]
[337236929,1725519846891,-500.0,0.00041,120]
[337236930,1725519846933,-500.0,0.00041,120]
[337236931,1725519846977,-694.0,0.00041,120]
[337236932,1725519847021,-500.0,0.00041,120]
[337236933,1725519847063,-500.0,0.00041,120]
[337236934,1725519847109,-500.0,0.00041,120]
[337236935,1725519847157,-500.0,0.00041,120]
[337236936,1725519847201,-500.0,0.00041,120]
[337236937,1725519847245,-500.0,0.00041,120]
[337236938,1725519847286,-500.0,0.00041,120]
[337236939,1725519847329,-500.0,0.00041,120]
[337236940,1725519847373,-500.0,0.00041,120]
[337236941,1725519847415,-500.0,0.00041,120]
[337236942,1725519847459,-500.0,0.00041,120]
[337236943,1725519847504,-619742.54953785,0.00041,120]
[337236946,1725519881513,-800.0,0.00038,120]
[337236947,1725519881562,-271.388,0.00039199,30]
[337236948,1725519881608,-150.0,0.00039565,120]
[337236949,1725519881657,-380257.45046215,0.00041,120]
[337236950,1725519881704,-150.0,0.00041,120]
[337236951,1725519881753,-500000.0,0.00041,120]
[337236952,1725519881800,-21941.04041209,0.00041,30]
[337236953,1725519881845,-1520.52,0.00041,120]
[337236954,1725519881889,-150.0,0.00041015,120]
[337236955,1725519881932,-150.0,0.00041057,120]
[337236956,1725519881976,-483.19942897,0.00041078,120]
[337236957,1725519882020,-1502.74428132,0.00041085,120]
[337236958,1725519882063,-1682.20236226,0.00041095,30]
[337236959,1725519882107,-1000.0,0.00041095,120]
[337236960,1725519882154,-586.70959073,0.00041095,120]
[337236961,1725519882203,-508.08,0.00041095,120]
[337236962,1725519882250,-1000.0,0.00041095,120]
[337236963,1725519882295,-1000.0,0.00041095,120]
[337236964,1725519882341,-253.38937154,0.00041095,120]
[337236965,1725519882387,-152.11,0.00041123,30]
[337236966,1725519882432,-150.0,0.00041152,120]
[337236967,1725519882478,-500.0,0.00041164,30]
[337236968,1725519882520,-487.73881767,0.00041164,30]
[337236969,1725519882563,-151.0,0.00041233,120]
[337236970,1725519882610,-150.0,0.00041277,120]
[337236971,1725519882653,-150.0,0.00041314,120]
[337236972,1725519882696,-150.0,0.00041322,120]
[337236973,1725519882739,-440.38114463,0.000414,120]
[337236974,1725519882782,-220.39454046,0.000414,120]
[337236975,1725519882828,-2000.0,0.000415,48]
[337236976,1725519882872,-340.1044225,0.000416,120]
[337236977,1725519882918,-150.0,0.00041685,120]
[337236978,1725519882964,-150.0,0.00041715,120]
[337236979,1725519883009,-150.0,0.00041799,120]
[337236980,1725519883052,-2536.678,0.000418,60]
[337236981,1725519883094,-156.905,0.00041888,30]
[337236982,1725519883140,-150.0,0.00041894,120]
[337236983,1725519883185,-770.01576367,0.00041898,120]
[337236984,1725519883227,-609.73374155,0.00041898,90]
[337236985,1725519883272,-828.56138379,0.00041898,90]
[337236986,1725519883313,-150.0,0.00041899,120]
[337236987,1725519883354,-1000.0,0.00041999,120]
[337236988,1725519883395,-1061.31033832,0.00042,120]
[337236989,1725519883435,-151.0,0.00042,120]
[337236990,1725519883476,-2000.0,0.00042,60]
[337236991,1725519883820,-1173.56754221,0.00042,120]
[337236992,1725519883874,-2000.0,0.00042,120]
[337236993,1725519883919,-500.0,0.00042,120]
[337236994,1725519883976,-500000.0,0.00042,120]
[337236995,1725519884023,-25000.0,0.00042,120]
[337236996,1725519884070,-1000000.0,0.00042,120]
[337236997,1725519884115,-150.0,0.00042,120]
[337236998,1725519884162,-857.3513767,0.00042,120]
[337236999,1725519884210,-5000.0,0.00042,120]
[337237000,1725519884253,-5000.0,0.00042,120]
[337237001,1725519884296,-28750.78637759,0.00042,120]
[337237002,1725519884339,-23051.87698709,0.00042,120]
[337237003,1725519884384,-500.0,0.00042,120]
[337237004,1725519884429,-500.0,0.00042,120]
[337237005,1725519884475,-500.0,0.00042,120]
[337237006,1725519884518,-500.0,0.00042,120]
[337237007,1725519884563,-500.0,0.00042,120]
[337237008,1725519884606,-500.0,0.00042,120]
[337237009,1725519884648,-500.0,0.00042,120]
[337237010,1725519884689,-500.0,0.00042,120]
[337237011,1725519884732,-500.0,0.00042,120]
[337237012,1725519884776,-500.0,0.00042,120]
[337237013,1725519884818,-500.0,0.00042,120]
[337237014,1725519884862,-500.0,0.00042,120]
[337237015,1725519884909,-500.0,0.00042,120]
[337237016,1725519884953,-500.0,0.00042,120]
[337237017,1725519884999,-500.0,0.00042,120]
[337237018,1725519885042,-500.0,0.00042,120]
[337237019,1725519885085,-500.0,0.00042,120]
[337237020,1725519885132,-500.0,0.00042,120]
[337237021,1725519885176,-500.0,0.00042,120]
[337237022,1725519885219,-500.0,0.00042,120]
[337237023,1725519885263,-500.0,0.00042,120]
[337237024,1725519885306,-500.0,0.00042,120]
[337237025,1725519885350,-500.0,0.00042,120]
[337237026,1725519885396,-500.0,0.00042,120]
[337237027,1725519885440,-500.0,0.00042,120]
[337237028,1725519885483,-500.0,0.00042,120]
[337237029,1725519885524,-500.0,0.00042,120]
[337237030,1725519885569,-500.0,0.00042,120]
[337237031,1725519885612,-500.0,0.00042,120]
[337237032,1725519885654,-524.0,0.00042,120]
[337237033,1725519885695,-500.0,0.00042,120]
[337237034,1725519885736,-660.0,0.00042,120]
[337237035,1725519885776,-500.0,0.00042,120]
[337237036,1725519885816,-500.0,0.00042,120]
[337237037,1725519885855,-500.0,0.00042,120]
[337237038,1725519885896,-500.0,0.00042,120]
[337237039,1725519885937,-500.0,0.00042,120]
[337237040,1725519885978,-500.0,0.00042,120]
[337237041,1725519886018,-500.0,0.00042,120]
[337237042,1725519886059,-500.0,0.00042,120]
[337237043,1725519886103,-500.0,0.00042,120]
[337237044,1725519886152,-500.0,0.00042,120]
[337237045,1725519886196,-500.0,0.00042,120]
[337237046,1725519886240,-500.0,0.00042,120]
[337237047,1725519886280,-500.0,0.00042,120]
[337237048,1725519886324,-500.0,0.00042,120]
[337237049,1725519886366,-548.0,0.00042,120]
[337237050,1725519886407,-500.0,0.00042,120]
[337237051,1725519886448,-500.0,0.00042,120]
[337237052,1725519886491,-500.0,0.00042,120]
[337237053,1725519886532,-500.0,0.00042,120]
[337237054,1725519886574,-580.0,0.00042,120]
[337237055,1725519886619,-150.0,0.00042135,120]
[337237056,1725519886662,-5000.0,0.0004214,90]
[337237057,1725519886709,-10189.67794438,0.0004214,90]
[337237058,1725519886754,-150.0,0.00042158,120]
[337237059,1725519886795,-150.0,0.00042208,120]
[337237060,1725519886834,-317.8394,0.0004222,30]
[337237061,1725519886873,-5000.0,0.00042237,90]
[337237062,1725519886914,-150.0,0.0004225,30]
[337237063,1725519886956,-288.93015848,0.0004226,30]
[337237064,1725519886996,-2543.70006586,0.0004233,120]
[337237065,1725519887037,-151.0,0.00042356,120]
[337237066,1725519887077,-317.36888154,0.0004239,120]
[337237067,1725519887120,-150.0,0.0004242,120]
[337237068,1725519887161,-2000.0,0.000425,60]
[337237069,1725519887203,-3787.22148429,0.00042549,117]
[337237070,1725519887245,-1061.18420189,0.00042549,117]
[337237071,1725519887291,-173.73,0.0004274,91]
[337237072,1725519887337,-1133.60853062,0.000428,60]
[337237073,1725519887383,-255.43897575,0.0004288,120]
[337237074,1725519887426,-382.01299707,0.000429,60]
[337237075,1725519887469,-1111.20620675,0.000429,60]
[337237076,1725519887513,-3555.5,0.00042943,94]
[337237077,1725519887557,-1000.0,0.00042999,120]
[337237078,1725519887601,-2638.15192593,0.00043,30]
[337237079,1725519887646,-3028.53198553,0.00043,30]
[337237080,1725519887691,-2000.0,0.00043,60]
[337237081,1725519887736,-2172.72443119,0.00043,120]
[337237082,1725519887779,-319.65153289,0.00043,120]
[337237083,1725519887822,-1000000.0,0.00043,120]
[337237084,1725519887864,-500000.0,0.00043,120]
[337237085,1725519887909,-150.0,0.00043,120]
[337237086,1725519887951,-3598.0,0.00043,120]
[337237087,1725519887991,-2000.0,0.00043,120]
[337237088,1725519888032,-1896.35127777,0.00043,120]
[337237089,1725519888073,-2469.88049064,0.00043,120]
[337237090,1725519888117,-10478.0,0.00043,120]
[337237091,1725519888303,-510.59780232,0.00043,30]
[337237092,1725519888346,-185.13,0.00043014,120]
[337237093,1725519888393,-150.0,0.00043032,120]
[337237094,1725519888437,-333.53499,0.000432,30]
[337237095,1725519888480,-150.0,0.00043296,120]
[337237096,1725519888526,-1388.56,0.00043296,120]
[337237097,1725519888568,-150.0,0.0004331,120]
[337237098,1725519888612,-150.0,0.00043366,120]
[337237099,1725519888655,-151.0,0.00043479,120]
[337237100,1725519888697,-500.38,0.00043489,60]
[337237101,1725519888741,-150.0,0.00043515,120]
[337237102,1725519888786,-10130.48451109,0.0004361,60]
[337237103,1725519888830,-150.0,0.0004364,120]
[337237104,1725519888873,-479.09180453,0.000437,120]
[337237105,1725519888916,-2009.99390284,0.0004379,120]
[337237106,1725519888957,-465.5740413,0.000438,30]
[337237107,1725519888999,-1127.11698238,0.000438,111]
[337237108,1725519889043,-852.43141132,0.000438,120]
[337237109,1725519889086,-2500.0,0.000438,120]
[337237110,1725519889132,-2378.987,0.000438,60]
[337237111,1725519889182,-2356.66,0.000438,90]
[337237112,1725519889233,-2624.73,0.00043835,120]
[337237113,1725519889277,-1000.0,0.00043836,32]
[337237114,1725519889319,-10000.0,0.000439,120]
[337237115,1725519889371,-10000.0,0.000439,120]
[337237116,1725519889419,-410.0,0.00043986,120]
[337237117,1725519889464,-1000.0,0.00043999,120]
[337237118,1725519889508,-832967.7777184,0.00044,120]
[337237119,1725519900156,-807.4488767,0.00038,120]
[337237120,1725519900219,-500.0,0.00042726,30]
[337237121,1725519900267,-500.0,0.00042726,30]
[337237122,1725519900317,-500.0,0.00043822,30]
[337237123,1725519900369,-500.0,0.00043822,30]
[337237124,1725519900419,-167032.2222816,0.00044,120]
[337237125,1725519900466,-673.79115779,0.00044,120]
[337237126,1725519900511,-2000.0,0.00044,120]
[337237127,1725519900555,-500000.0,0.00044,120]
[337237128,1725519900596,-460.0,0.00044,120]
[337237129,1725519900636,-150.0,0.00044,120]
[337237130,1725519900678,-10000.0,0.00044,120]
[337237131,1725519900720,-947.05,0.00044,120]
[337237132,1725519900760,-283.31097324,0.00044,120]
[337237133,1725519900801,-3500.0,0.00044,30]
[337237134,1725519900840,-8141.0,0.00044,120]
[337237135,1725519900881,-500.422787,0.00044,57]
[337237136,1725519900921,-5000.0,0.00044013,30]
[337237137,1725519900960,-3787.22148429,0.00044049,117]
[337237138,1725519901000,-1490.07,0.00044053,30]
[337237139,1725519901040,-5000.0,0.00044076,30]
[337237140,1725519901080,-928.16,0.00044077,30]
[337237141,1725519901123,-4255.52,0.0004413,30]
[337237142,1725519901164,-150.0,0.00044135,120]
[337237143,1725519901203,-5000.0,0.00044138,30]
[337237144,1725519901244,-5000.0,0.00044156,30]
[337237145,1725519901283,-5000.0,0.00044166,30]
[337237146,1725519901324,-150.0,0.0004418,120]
[337237147,1725519901366,-5000.0,0.00044193,30]
[337237148,1725519901413,-240.07163377,0.000442,120]
[337237149,1725519901454,-240.07163373,0.000442,120]
[337237150,1725519901498,-240.07163373,0.000442,120]
[337237151,1725519901541,-240.07163373,0.000442,120]
[337237152,1725519901745,-240.07163373,0.000442,120]
[337237153,1725519901796,-5000.0,0.00044202,30]
[337237154,1725519901840,-5000.0,0.00044208,30]
[337237155,1725519901905,-5000.0,0.00044246,30]
[337237156,1725519901952,-1000.0,0.0004427,120]
[337237157,1725519901995,-1000.0,0.0004427,120]
[337237158,1725519902037,-1000.0,0.0004427,120]
[337237159,1725519902079,-1000.0,0.0004427,120]
[337237160,1725519902123,-1000.0,0.0004427,120]
[337237161,1725519902169,-1000.0,0.0004427,120]
[337237162,1725519902217,-1000.0,0.0004427,120]
[337237163,1725519902262,-1000.0,0.000443,120]
[337237164,1725519902308,-1000.0,0.000443,120]
[337237165,1725519902354,-1000.0,0.000443,120]
[337237166,1725519902403,-1000.0,0.000443,120]
[337237167,1725519902451,-1000.0,0.000443,120]
[337237168,1725519902497,-1000.0,0.000443,120]
[337237169,1725519902542,-1000.0,0.000443,120]
[337237170,1725519902587,-1000.0,0.000443,120]
[337237171,1725519902628,-1578.08,0.00044353,30]
[337237172,1725519902669,-5000.0,0.00044379,30]
[337237173,1725519902712,-2624.73,0.00044383,120]
[337237174,1725519902753,-7824.95,0.00044384,120]
[337237175,1725519902793,-2699.12,0.00044398,64]
[337237176,1725519902835,-150.0,0.00044402,120]
[337237177,1725519902876,-250.84,0.00044408,30]
[337237178,1725519902917,-5000.0,0.00044434,30]
[337237179,1725519902957,-1000.0,0.00044444,120]
[337237180,1725519902998,-5000.0,0.00044485,30]
[337237181,1725519903047,-5000.0,0.00044494,30]
[337237182,1725519903095,-150.0,0.00044499,120]
[337237183,1725519903147,-1000000.0,0.000445,120]
[337237184,1725519903203,-280.93943136,0.000445,30]
[337237185,1725519903259,-5000.0,0.00044502,30]
[337237186,1725519903319,-5000.0,0.00044509,30]
[337237187,1725519903373,-5000.0,0.00044561,30]
[337237188,1725519903424,-5000.0,0.00044562,30]
[337237189,1725519903476,-2791.22,0.00044573,30]